Workbook

Sheet 36
A3: по МБОУ Гимназия № 36 Авиастроительного района г.Казани
A4: руб.
B5: Доп ЭК | C5: Смета учреждения на выполнение муниципального задания, всего: | D5: в том числе за счет: | F5: муниципальное задание (счет ЛАГ, ЛБГ)
D6: субвенции РТ | E6: бюджета города | F6: Итого НФЗ: | G6: в пределах норматива НФЗ- 302 | I6: доведение до уровня утвержденной тарификации- 305- на 2018 не ставим объем | J6: сверхнормативные расходы - 308 | K6: Итого НСВ : | L6: в том числе | N6: Итого НСИ: | O6: в том числе | Q6: доведение до уровня утвержденной тарификации- 305 | R6: сверхнормативные расходы - 308
G7: за счет субвенции РТ | H7: субсидия, за счет бюджета города | L7: за счет бюджета | M7: за счет РФ
O8: расходы содержанию имущества | P8: содержание автотранспорта
B9: 1а | C9: 6 | D9: 7=11 | E9: 8=12+13+14+16+18+21+22 | F9: 10=11+12 | G9: 11 | H9: 12 | I9: 13 | J9: 14 | K9: 15 | L9: 16 | M9: 17 | N9: 18 | O9: 19 | P9: 20 | Q9: 21 | R9: 23
A10: КЦСР | G10: 0220825280 | H10: 0220242100 | I10: 0220242100, 0220242200 | J10: 0220242100, 0220242200 | K10: 4229900 | N10: 0220242100 | O10: 0220242100 | P10: 0220242100 | Q10: 0220242100 | R10: 0220242100
A11: ДопФК | H11: 05000 | M11: 99100 | O11: 90100-90400
A12: Нормативный ОФО ("Барс.МБП 2020_Тарификация"), всего на 2020 год | C12: =D12+E12 -> 35,199,792.88 | D12: =G12 -> 26,893,168.12 | E12: =H12+N12 -> 8,306,624.76 | F12: =G12+H12 -> 26,893,168.12 | G12: 26,893,168.12 | N12: =O12+P12 -> 8,306,624.76 | O12: 8,306,624.76
A13: Всего в смете учреждения | C13: =D13+E13 -> 35,758,702.09 | D13: =D14+D29+D38+D116+D122 -> 26,893,168.12 | E13: 8,865,533.97 | F13: 26,893,168.12 | G13: 26,893,168.12 | H13: 0.00 | I13: 0.00 | J13: 0.00 | K13: 2,878,371.72 | L13: 1,208,916.12 | M13: 1,669,455.60 | N13: =N14+N29+N38+N116+N122+N124 -> 8,306,624.76 | O13: =O14+O29+O38+O116+O122+O124 -> 8,306,624.76 | P13: =P14+P29+P38+P116+P122 -> 0.00 | Q13: =Q14+Q29+Q38+Q116+Q122 -> 243,351.21 | R13: =R14+R29+R38+R116+R122 -> 315,558.00
A14: Зарплата с начислениями | C14: =D14+E14 -> 31,366,935.64 | D14: =D15+D20+D24 -> 25,679,497.16 | E14: =H14+I14+N14+Q14+R14+J14 -> 5,687,438.48 | F14: =F15+F20+F24 -> 25,679,497.16 | G14: 25,679,497.16 | H14: 0.00 | I14: 0.00 | J14: 0.00 | K14: 0.00 | L14: 0.00 | M14: 0.00 | N14: =O14+P14 -> 5,444,087.27 | O14: =O15+O20+O24 -> 5,444,087.27 | P14: =P15+P20+P24 -> 0.00 | Q14: =Q15+Q20+Q24 -> 243,351.21 | R14: =R15+R20+R24 -> 0.00
A15: 211 "Заработная плата" | C15: =D15+E15 -> 24,091,348.42 | D15: =SUM(D16:D19) -> 19,723,116.10 | E15: =SUM(E16:E19) -> 4,368,232.32 | F15: =G15+H15 -> 19,723,116.10 | G15: =SUM(G16:G19) -> 19,723,116.10 | H15: 0.00 | I15: 0.00 | J15: 0.00 | K15: 0.00 | L15: 0.00 | M15: 0.00 | N15: =O15+P15 -> 4,181,326.63 | O15: 4,181,326.63 | P15: 0.00 | Q15: 186,905.69 | R15: 0.00
A16: Заработная плата педагогического персонала | B16: 211004 | C16: =D16+E16 -> 15,946,395.12 | D16: =G16 -> 15,946,395.12 | E16: =H16+I16+N16+Q16+R16+J16 -> 0.00 | F16: 15,946,395.12 | G16: 15,946,395.12 | K16: =L16+M16 -> 0.00 | N16: 0.00
A17: Заработная плата вспомогательного персонала | B17: 211005 | C17: 6,121,814.88 | D17: =G17 -> 3,262,505.16 | E17: =H17+I17+N17+Q17+R17+J17 -> 2,859,309.72 | F17: 3,262,505.16 | G17: 3,262,505.16 | K17: =L17+M17 -> 0.00 | N17: 2,672,404.03 | O17: =2859309.72-186905.69 -> 2,672,404.03 | Q17: 186,905.69
A18: Кухонные работники | B18: 900200 | C18: 1,508,922.60 | D18: 0.00 | E18: 1,508,922.60 | F18: 0.00 | K18: 0.00 | N18: 1,508,922.60 | O18: 1,508,922.60
A19: Резерв на премию | B19: 211004 | C19: 514,215.82 | D19: 514,215.82 | F19: 514,215.82 | G19: 514,215.82 | K19: 0.00 | N19: 0.00
A20: 212 "Прочие выплаты" | C20: 0.00 | D20: 0.00 | E20: 0.00 | F20: 0.00 | G20: =SUM(G21:G23) -> 0.00 | H20: =SUM(H21:H23) -> 0.00 | I20: 0.00 | J20: 0.00 | K20: =SUM(K21:K23) -> 0.00 | L20: 0.00 | M20: 0.00 | N20: 0.00 | O20: =SUM(O21:O23) -> 0.00 | P20: =SUM(P21:P23) -> 0.00 | Q20: 0.00 | R20: 0.00
A21: Возмещение работникам расходов по найму жилых помещений при служебных командировках | B21: 226024 | C21: 0.00 | D21: 0.00 | E21: 0.00 | F21: 0.00 | K21: =L21+M21 -> 0.00 | N21: 0.00
A22: Возмещение работникам расходов по проезду при служебных командировках | B22: 226042 | C22: 0.00 | D22: 0.00 | E22: 0.00 | F22: 0.00 | K22: 0.00 | N22: 0.00
A23: Суточные работникам при служебных командировках | B23: 212006 | C23: 0.00 | D23: 0.00 | E23: 0.00 | F23: 0.00 | K23: 0.00 | N23: 0.00
A24: 213 "Начисления на оплату труда" | C24: 7,275,587.22 | D24: 5,956,381.06 | E24: 1,319,206.16 | F24: 5,956,381.06 | G24: =SUM(G25:G28) -> 5,956,381.06 | H24: =SUM(H25:H28) -> 0.00 | I24: 0.00 | J24: 0.00 | K24: 0.00 | L24: 0.00 | M24: 0.00 | N24: 1,262,760.64 | O24: 1,262,760.64 | P24: 0.00 | Q24: 56,445.52 | R24: 0.00
A25: Начисления на заработную плату педагогического персонала | B25: 213004 | C25: 4,815,811.33 | D25: 4,815,811.33 | E25: 0.00 | F25: 4,815,811.33 | G25: 4,815,811.33 | K25: 0.00 | N25: 0.00
A26: Начисления на заработную плату вспомогательного персонала | B26: 213005 | C26: 1,848,788.08 | D26: 985,276.55 | E26: 863,511.53 | F26: 985,276.55 | G26: 985,276.55 | K26: 0.00 | N26: 807,066.01 | O26: =863511.53-56445.52 -> 807,066.01 | Q26: 56,445.52
A27: Кухонные работники | B27: 900200 | C27: 455,694.63 | D27: 0.00 | E27: 455,694.63 | F27: 0.00 | K27: 0.00 | N27: 455,694.63 | O27: 455,694.63
A28: Резерв на премию | B28: 213004 | C28: 155,293.18 | D28: 155,293.18 | F28: 155,293.18 | G28: 155,293.18 | K28: 0.00 | N28: 0.00
A29: 223 "Коммунальные услуги" | C29: 2,267,258.98 | D29: 0.00 | E29: =H29+I29+N29+Q29+R29+J29 -> 2,267,258.98 | F29: 0.00 | G29: =SUM(G30:G37) -> 0.00 | H29: =SUM(H30:H37) -> 0.00 | I29: 0.00 | J29: 0.00 | K29: 0.00 | L29: 0.00 | M29: 0.00 | N29: 1,951,700.98 | O29: =SUM(O30:O37) -> 1,951,700.98 | P29: =SUM(P30:P37) -> 0.00 | Q29: 0.00 | R29: 315,558.00
A30: Электроснабжение ассигнования | B30: 223001 | C30: 954,647.00 | D30: 0.00 | E30: 954,647.00 | F30: 0.00 | K30: 0.00 | N30: 954,647.00 | O30: 954,647.00
A31: Электроснабжение лимиты | B31: 223001 | C31: 0.00 | D31: 0.00 | E31: 0.00 | F31: 0.00 | K31: 0.00 | N31: 0.00
A32: Теплоснабжение | B32: 223002 | C32: 1,093,059.00 | D32: 0.00 | E32: 1,093,059.00 | F32: 0.00 | K32: 0.00 | N32: =O32+P32 -> 777,501.00 | O32: =1093059-315558 -> 777,501.00 | R32: 315,558.00
A33: Газоснабжение | B33: 223003 | C33: 0.00 | D33: 0.00 | E33: 0.00 | F33: 0.00 | K33: 0.00 | N33: 0.00
A34: Водоснабжение | B34: 223004 | C34: 70,634.00 | D34: 0.00 | E34: 70,634.00 | F34: 0.00 | K34: 0.00 | N34: 70,634.00 | O34: 70,634.00
A35: Оплата энергосервисных договоров (контрактов) | B35: 223010 | C35: 0.00 | D35: 0.00 | E35: 0.00 | F35: 0.00 | K35: 0.00 | N35: 0.00
A36: вывоз мусора | B36: 223017 | C36: 148,918.98 | D36: 0.00 | E36: 148,918.98 | F36: 0.00 | K36: 0.00 | N36: 148,918.98 | O36: 148,918.98
A37: Прочие коммунальные услуги | B37: 223099 | C37: 0.00 | D37: 0.00 | E37: 0.00 | F37: 0.00 | K37: 0.00 | N37: 0.00
A38: Прочие расходы | C38: 1,084,993.51 | D38: 480,000.00 | E38: 604,993.51 | F38: 480,000.00 | G38: =G39+G44+G46+G49+G70+G90+G95+G101+G87 -> 480,000.00 | H38: 0.00 | I38: 0.00 | J38: 0.00 | K38: 2,878,371.72 | L38: 1,208,916.12 | M38: 1,669,455.60 | N38: 604,993.51 | O38: =O39+O44+O46+O49+O70+O90+O95+O101+O87 -> 604,993.51 | P38: =P39+P44+P46+P49+P70+P90+P95+P101+P87 -> 0.00 | Q38: =Q39+Q44+Q46+Q49+Q70+Q90+Q95+Q101 -> 0.00 | R38: =R39+R44+R46+R49+R70+R90+R95+R101 -> 0.00
A39: 221 "Услуги связи" | C39: 33,000.00 | D39: 0.00 | E39: 33,000.00 | F39: 0.00 | G39: =SUM(G40:G43) -> 0.00 | H39: =SUM(H40:H43) -> 0.00 | I39: =SUM(I40:I43) -> 0.00 | J39: =SUM(J40:J43) -> 0.00 | K39: 0.00 | L39: =SUM(L40:L43) -> 0.00 | M39: =SUM(M40:M43) -> 0.00 | N39: 33,000.00 | O39: =SUM(O40:O43) -> 33,000.00 | P39: =SUM(P40:P43) -> 0.00 | Q39: =SUM(Q40:Q43) -> 0.00 | R39: =SUM(R40:R43) -> 0.00
A40: Услуги телефонной связи (абонентская и повременная плата (ежемесячный платеж) за местные, междугородные, международные переговоры) | B40: 221001 | C40: 33,000.00 | D40: 0.00 | E40: 33,000.00 | F40: 0.00 | K40: 0.00 | N40: 33,000.00 | O40: 33,000.00
A41: Услуги сотовой связи | B41: 221010 | C41: =D41+E41 -> 0.00 | D41: 0.00 | E41: 0.00 | F41: 0.00 | K41: 0.00 | N41: 0.00
A42: Плата за услуги сети Интернет | B42: 221012 | C42: 0.00 | D42: 0.00 | E42: 0.00 | F42: 0.00 | K42: 0.00 | N42: 0.00
A43: Прочие услуги связи | B43: 221099 | C43: 0.00 | D43: 0.00 | E43: 0.00 | F43: 0.00 | K43: 0.00 | N43: 0.00
A44: 222 " Транспортные услуги" | C44: 0.00 | D44: 0.00 | E44: 0.00 | F44: 0.00 | G44: =G45 -> 0.00 | H44: =H45 -> 0.00 | I44: =I45 -> 0.00 | J44: =J45 -> 0.00 | K44: 0.00 | L44: =L45 -> 0.00 | M44: =M45 -> 0.00 | N44: 0.00 | O44: =O45 -> 0.00 | P44: =P45 -> 0.00 | Q44: =Q45 -> 0.00 | R44: =R45 -> 0.00
A45: Прочие транспортные услуги | B45: 222099 | C45: 0.00 | D45: 0.00 | E45: 0.00 | F45: 0.00 | K45: 0.00 | N45: 0.00
A46: 224 ""Арендная плата за пользование имуществом" | C46: 0.00 | D46: 0.00 | E46: 0.00 | F46: 0.00 | G46: =SUM(G47:G48) -> 0.00 | H46: 0.00 | I46: 0.00 | J46: 0.00 | K46: 0.00 | L46: 0.00 | M46: 0.00 | N46: 0.00 | O46: 0.00 | P46: 0.00 | Q46: 0.00 | R46: 0.00
A47: Аренда транспорта, оборудования | B47: 224002 | C47: 0.00 | D47: 0.00 | E47: 0.00 | F47: 0.00 | K47: 0.00 | N47: 0.00
A48: Прочие по арендной плате | B48: 224099 | C48: 0.00 | D48: 0.00 | E48: 0.00 | F48: 0.00 | K48: 0.00 | N48: 0.00
A49: 225 "Работы, услуги по содержанию имущества" | C49: 371,932.30 | D49: 0.00 | E49: 371,932.30 | F49: 0.00 | G49: =G50+G54++G55+G56+G57+G58+G59+G60+G61+G62+G63+G65+G66+G68+G69+G67 -> 0.00 | H49: =H50+H54++H55+H56+H57+H58+H59+H60+H61+H62+H63+H65+H66+H68+H69+H67 -> 0.00 | I49: =I50+I54++I55+I56+I57+I58+I59+I60+I61+I62+I63+I65+I66+I68+I69 -> 0.00 | J49: =J50+J54++J55+J56+J57+J58+J59+J60+J61+J62+J63+J65+J66+J68+J69 -> 0.00 | K49: =K50+K54++K55+K56+K57+K58+K59+K60+K61+K62+K63+K65+K66+K68+K69 -> 0.00 | L49: =L50+L54++L55+L56+L57+L58+L59+L60+L61+L62+L63+L65+L66+L68+L69 -> 0.00 | M49: =M50+M54++M55+M56+M57+M58+M59+M60+M61+M62+M63+M65+M66+M68+M69 -> 0.00 | N49: 371,932.30 | O49: =O50+O54++O55+O56+O57+O58+O59+O60+O61+O62+O63+O65+O66+O68+O69+O67+O64 -> 371,932.30 | P49: =P50+P54++P55+P56+P57+P58+P59+P60+P61+P62+P63+P65+P66+P68+P69+P67 -> 0.00 | Q49: =Q50+Q54++Q55+Q56+Q57+Q58+Q59+Q60+Q61+Q62+Q63+Q65+Q66+Q68+Q69+Q67 -> 0.00 | R49: =R50+R54++R55+R56+R57+R58+R59+R60+R61+R62+R63+R65+R66+R68+R69+R67 -> 0.00
A50: Содержание в чистоте помещений, зданий, дворов, иного недвижимого имущества | B50: 225002 | C50: 80,340.58 | D50: =SUM(D51:D53) -> 0.00 | E50: 80,340.58 | F50: 0.00 | G50: 0.00 | H50: 0.00 | I50: 0.00 | J50: 0.00 | K50: 0.00 | L50: 0.00 | M50: 0.00 | N50: =O50+P50 -> 80,340.58 | O50: =SUM(O51:O53) -> 80,340.58 | P50: 0.00 | Q50: 0.00 | R50: 0.00
A51: дератизация, дезинсекция | C51: 13,881.10 | D51: 0.00 | E51: 13,881.10 | F51: 0.00 | K51: 0.00 | N51: =O51+P51 -> 13,881.10 | O51: 13,881.10
A52: уборка и вывоз снега, обрезка деревьев, озеленение | C52: 30,000.00 | D52: 0.00 | E52: 30,000.00 | F52: 0.00 | K52: 0.00 | N52: 30,000.00 | O52: 30,000.00
A53: содержание контейнерных площадок | C53: 36,459.48 | D53: 0.00 | E53: 36,459.48 | F53: 0.00 | K53: 0.00 | N53: 36,459.48 | O53: 36,459.48
A54: Проведение работ по ремонту и восстановлению эффективности функционирования коммунальных инженерных систем и коммуникаций, осуществляемые сверх регламентированного условиями поставки коммунальных услуг перечня работ (технологических нужд) | B54: 225003 | C54: 55,061.20 | D54: 0.00 | E54: 55,061.20 | F54: 0.00 | K54: 0.00 | N54: 55,061.20 | O54: 55,061.20
A55: Обеспечение функционирования и поддержка (восстановление) работоспособности объектов нефинансовых активов | B55: 225004 | C55: 0.00 | D55: 0.00 | E55: 0.00 | F55: 0.00 | K55: 0.00 | N55: 0.00
A56: Зарплата внештатных сотрудников | B56: 225005 | C56: 0.00 | D56: 0.00 | E56: 0.00 | F56: 0.00 | K56: 0.00 | N56: 0.00
A57: Текущий ремонт зданий, сооружений | B57: 225007 | C57: 72,297.00 | D57: 0.00 | E57: 72,297.00 | F57: 0.00 | K57: 0.00 | N57: 72,297.00 | O57: 72,297.00
A58: Техническое обслуживание и ремонт аппаратного обеспечения | B58: 225010 | C58: 30,000.00 | D58: 0.00 | E58: 30,000.00 | F58: 0.00 | K58: 0.00 | N58: 30,000.00 | O58: 30,000.00
A59: Техническое обслуживание транспортных средств | B59: 225011 | C59: 0.00 | D59: 0.00 | E59: 0.00 | F59: 0.00 | K59: 0.00 | N59: 0.00
A60: Ремонт транспортных средств | B60: 225012 | C60: 0.00 | D60: 0.00 | E60: 0.00 | F60: 0.00 | K60: 0.00 | N60: 0.00
A61: Технический осмотр транспортных средств | B61: 225013 | C61: 0.00 | D61: 0.00 | E61: 0.00 | F61: 0.00 | K61: 0.00 | N61: 0.00
A62: Глонасс | B62: 225015 | C62: 0.00 | D62: 0.00 | E62: 0.00 | F62: 0.00 | K62: 0.00 | N62: 0.00
A63: Расходы на техническое обслуживание и ремонт оборудования (кухонное) | B63: 900200 | C63: 0.00 | D63: 0.00 | E63: 0.00 | F63: 0.00 | K63: 0.00 | N63: 0.00
A64: Расходы на техническое обслуживание и ремонт оборудования ( офисное.) | B64: 225015 | C64: 0.00 | D64: =G64 -> 0.00 | E64: =H64+I64+N64+Q64+R64+J64 -> 0.00 | F64: 0.00 | K64: 0.00 | N64: 0.00
A65: КЭЦ | B65: 225015 | C65: 90,755.04 | D65: 0.00 | E65: 90,755.04 | F65: 0.00 | K65: 0.00 | N65: 90,755.04 | O65: 90,755.04
A66: Техническое обслуживание приборов учета | B66: 225035 | C66: 31,548.48 | D66: 0.00 | E66: 31,548.48 | F66: 0.00 | K66: 0.00 | N66: 31,548.48 | O66: 31,548.48
A67: Расходы по валке и обрезке зеленых насаждений в муниципальных учреждениях образования | B67: 225040 | C67: 0.00 | D67: 0.00 | E67: 0.00 | F67: 0.00 | K67: 0.00 | N67: 0.00
A68: Прочие работы, услуги по содержанию имущества | B68: 225099 | C68: 11,930.00 | D68: 0.00 | E68: 11,930.00 | F68: 0.00 | K68: 0.00 | N68: 11,930.00 | O68: 11,930.00
A69: Кухонные работники (ремонт кухонного оборудования) | B69: 900200 | C69: 0.00 | D69: 0.00 | E69: 0.00 | F69: 0.00 | K69: 0.00 | N69: 0.00
A70: 226 "Прочие работы, услуги" | C70: 89,752.00 | D70: =G70 -> 0.00 | E70: 89,752.00 | F70: 0.00 | G70: =G71+G72+G73+G74+G75+G76+G77+G78+G79+G80+G81+G82+G83+G84 -> 0.00 | H70: =H71+H72+H73+H74+H75+H76+H77+H78+H79+H80+H81+H82+H83+H84 -> 0.00 | I70: =I71+I72+I73+I74+I75+I76+I77+I78+I79+I80+I81+I82+I83+I84 -> 0.00 | J70: =J71+J72+J73+J74+J75+J76+J77+J78+J79+J80+J81+J82+J83+J84 -> 0.00 | K70: =SUM(K71:K84) -> 2,878,371.72 | L70: 1,208,916.12 | M70: 1,669,455.60 | N70: 89,752.00 | O70: =O71+O72+O73+O74+O75+O76+O77+O78+O79+O80+O81+O82+O83+O84 -> 89,752.00 | P70: =P71+P72+P73+P74+P75+P76+P77+P78+P79+P80+P81+P82+P83+P84 -> 0.00 | Q70: =Q71+Q72+Q73+Q74+Q75+Q76+Q77+Q78+Q79+Q80+Q81+Q82+Q83+Q84 -> 0.00 | R70: =R71+R72+R73+R74+R75+R76+R77+R78+R79+R80+R81+R82+R83+R84 -> 0.00
A71: Подписка | B71: 226001 | C71: 20,000.00 | D71: 0.00 | E71: 20,000.00 | F71: 0.00 | K71: 0.00 | N71: 20,000.00 | O71: 20,000.00
A72: Зарплата внештатных сотрудников | B72: 226002 | C72: 0.00 | D72: 0.00 | E72: 0.00 | F72: 0.00 | K72: 0.00 | N72: 0.00
A73: Установка и монтаж локальных вычислительных сетей, систем охранной и пожарной сигнализации, видеонаблюдения, контроля доступа | B73: 228005 | C73: 0.00 | D73: 0.00 | E73: 0.00 | F73: 0.00 | K73: 0.00 | N73: 0.00
A74: За участие в семинарах, совещаниях, конференциях, курсах повышения квалификации, …. | B74: 226006 | C74: =D74+E74 -> 9,000.00 | D74: =G74 -> 0.00 | E74: 9,000.00 | F74: =G74+H74 -> 0.00 | K74: 0.00 | N74: =O74+P74 -> 9,000.00 | O74: 9,000.00
A75: Питание | B75: 226003 | C75: 0.00 | D75: 0.00 | E75: 0.00 | F75: 0.00 | K75: 2,878,371.72 | L75: 1,208,916.12 | M75: 1,669,455.60 | N75: =O75+P75 -> 0.00
A76: Приобретение и обновление справочно-информ. баз данных (Гарант, Консультант и др.) | B76: 352/353 | C76: 0.00 | D76: 0.00 | E76: 0.00 | F76: 0.00 | K76: 0.00 | N76: 0.00
A77: Услуги по страхованию ( за исключениемОСАГО, КАСКО) | B77: 227001 | C77: 0.00 | D77: 0.00 | E77: 0.00 | F77: 0.00 | K77: 0.00 | N77: 0.00
A78: Типографские работы | B78: 226022 | C78: 0.00 | D78: 0.00 | E78: 0.00 | F78: 0.00 | K78: 0.00 | N78: 0.00
A79: Размещение объявлений, рекламы с СМИ | B79: 226023 | C79: 0.00 | D79: 0.00 | E79: 0.00 | F79: 0.00 | K79: 0.00 | N79: 0.00
A80: Услуги адвокатов, нотариусов, переводчиков, экспертов, инкассаторов | B80: 226025 | C80: 0.00 | D80: 0.00 | E80: 0.00 | F80: 0.00 | K80: 0.00 | N80: 0.00
A81: Проведение инвентаризации, паспортизации основных средств | B81: 226027 | C81: =D81+E81 -> 0.00 | D81: 0.00 | E81: 0.00 | F81: 0.00 | K81: 0.00 | N81: 0.00
A82: Оплата медицинских осмотров | B82: 226031 | C82: 0.00 | D82: 0.00 | E82: 0.00 | F82: 0.00 | K82: 0.00 | N82: 0.00
A83: Услуги по страхованию транспортных средств (ОСАГО, КАСКО) | B83: 227002 | C83: 0.00 | D83: 0.00 | E83: 0.00 | F83: 0.00 | K83: =L83+M83 -> 0.00 | N83: 0.00
A84: СВОД Прочие работы, услуги | B84: 226099 | C84: 60,752.00 | D84: =G84 -> 0.00 | E84: =H84+I84+N84+Q84+R84+J84 -> 60,752.00 | F84: =G84+H84 -> 0.00 | G84: =G85+G86 -> 0.00 | H84: =H85+H86 -> 0.00 | I84: 0.00 | J84: 0.00 | K84: 0.00 | N84: =O84+P84 -> 60,752.00 | O84: =O85+O86 -> 60,752.00 | P84: =P85+P86 -> 0.00 | Q84: 0.00 | R84: 0.00
A85: Прочие работы, услуги (счетчики) | C85: 10,752.00 | D85: 0.00 | E85: 10,752.00 | F85: 0.00 | K85: 0.00 | N85: 10,752.00 | O85: 10,752.00
A86: Прочие работы, услуги | C86: 50,000.00 | D86: 0.00 | E86: 50,000.00 | F86: 0.00 | K86: 0.00 | N86: 50,000.00 | O86: 50,000.00
A87: 227 | C87: 0.00 | D87: 0.00 | E87: 0.00 | F87: 0.00 | G87: =G88+G89 -> 0.00 | H87: 0.00 | I87: 0.00 | J87: 0.00 | K87: 0.00 | L87: 0.00 | M87: 0.00 | N87: 0.00 | O87: 0.00 | P87: 0.00 | Q87: 0.00 | R87: 0.00
A88: Услуги по страхованию (за исключением ОСАГО, КАСКО) | B88: 227001 | C88: 0.00 | D88: 0.00 | E88: 0.00 | F88: 0.00 | K88: =L88+M88 -> 0.00 | N88: 0.00
A89: Услуги по страхованию транспортных средств (ОСАГО, КАСКО) | B89: 227002 | C89: 0.00 | D89: 0.00 | E89: 0.00 | F89: 0.00 | K89: 0.00 | N89: 0.00
A90: 290 "Прочие расходы" | C90: 0.00 | D90: 0.00 | E90: 0.00 | F90: 0.00 | G90: =SUM(G91:G94) -> 0.00 | H90: 0.00 | I90: 0.00 | J90: 0.00 | K90: 0.00 | L90: 0.00 | M90: 0.00 | N90: 0.00 | O90: 0.00 | P90: 0.00 | Q90: 0.00 | R90: 0.00
A91: Штрафы, пени и другие экономические санкции | B91: 292003 | C91: 0.00 | D91: 0.00 | E91: 0.00 | F91: 0.00 | K91: =L91+M91 -> 0.00 | N91: 0.00
A92: Прочие налоги, в т.ч.госпошлины (за исключением налогов по школьным автобусам) | B92: 291005 | C92: 0.00 | D92: 0.00 | E92: 0.00 | F92: 0.00 | K92: 0.00 | N92: 0.00
A93: Приобретение (изготовление) подарочной и сувенирной продукции (поздравительные открытки, адреса, почетные грамоты, дипломы, благодарственные письма, цветы, сувенирная продукция, медали, кубки, призы, подарки.) | B93: 349011 | C93: 0.00 | D93: 0.00 | E93: 0.00 | F93: 0.00 | K93: 0.00 | N93: 0.00
A94: Прочие расходы | B94: 000000 | C94: 0.00 | D94: 0.00 | E94: 0.00 | F94: 0.00 | K94: 0.00 | N94: 0.00
A95: 310 "Увеличение стоимости основных средств" | C95: 480,000.00 | D95: 480,000.00 | E95: 0.00 | F95: 480,000.00 | G95: =SUM(G96:G100) -> 480,000.00 | H95: 0.00 | I95: 0.00 | J95: 0.00 | K95: 0.00 | L95: 0.00 | M95: 0.00 | N95: 0.00 | O95: 0.00 | P95: 0.00 | Q95: 0.00 | R95: 0.00
A96: Приобретение огнетушителей | B96: 310001 | C96: 0.00 | D96: 0.00 | E96: 0.00 | F96: 0.00 | K96: =L96+M96 -> 0.00 | N96: 0.00
A97: Приобретение автоматизированных рабочих мест, серверного и т.п. оборудования | B97: 310004 | C97: 380,000.00 | D97: 380,000.00 | E97: 0.00 | F97: 380,000.00 | G97: 380,000.00 | K97: 0.00 | N97: 0.00
A98: Приобретение медицинского инструментария | B98: 310006 | C98: 0.00 | D98: 0.00 | E98: 0.00 | F98: 0.00 | K98: 0.00 | N98: 0.00
A99: Приобретение основных средств (оборудования, мебели, транспортных средств, техники, инструментов, хозинвентаря, книги и т. д.) | B99: 310099 | C99: 100,000.00 | D99: 100,000.00 | E99: 0.00 | F99: 100,000.00 | G99: 100,000.00 | K99: 0.00 | N99: 0.00
A100: Прочие расходы по увеличению стоимости основных средств | B100: 310099 | C100: 0.00 | D100: 0.00 | E100: 0.00 | F100: 0.00 | K100: 0.00 | N100: 0.00
A101: 340 "Увеличение стоимости материальных запасов" | C101: 110,309.21 | D101: 0.00 | E101: 110,309.21 | F101: 0.00 | G101: =SUM(G102:G115) -> 0.00 | H101: 0.00 | I101: 0.00 | J101: 0.00 | K101: 0.00 | L101: 0.00 | M101: 0.00 | N101: 110,309.21 | O101: 110,309.21 | P101: 0.00 | Q101: 0.00 | R101: 0.00
A102: ГСМ | B102: 343001 | C102: 0.00 | D102: 0.00 | E102: 0.00 | F102: 0.00 | K102: =L102+M102 -> 0.00 | N102: 0.00
A103: газомоторное топливо | B103: 343003 | C103: 0.00 | D103: 0.00 | E103: 0.00 | F103: 0.00 | K103: 0.00 | N103: 0.00
A104: Закупка мягкого инвентаря, одежды, обмундирования | B104: 345002 | C104: 0.00 | D104: 0.00 | E104: 0.00 | F104: 0.00 | K104: 0.00 | N104: 0.00
A105: Закупка запчастей к оборудованию | B105: 346003 | C105: 0.00 | D105: 0.00 | E105: 0.00 | F105: 0.00 | K105: 0.00 | N105: 0.00
A106: Закупка материалов, используемых в процессе обучения | B106: 346004 | C106: 0.00 | D106: 0.00 | E106: 0.00 | F106: 0.00 | K106: 0.00 | N106: 0.00
A107: Стройматериалы | B107: 344099 | C107: 52,372.57 | D107: 0.00 | E107: 52,372.57 | F107: 0.00 | K107: 0.00 | N107: 52,372.57 | O107: 52,372.57
A108: Закупка медикаментов, перевязочных средств | B108: 341006 | C108: 7,936.64 | D108: 0.00 | E108: 7,936.64 | F108: 0.00 | K108: 0.00 | N108: 7,936.64 | O108: 7,936.64
A109: Закупка запчастей к транспортным средствам | B109: 346013 | C109: 0.00 | D109: 0.00 | E109: 0.00 | F109: 0.00 | K109: 0.00 | N109: 0.00
A110: Приобретение автошин | B110: 346014 | C110: 0.00 | D110: 0.00 | E110: 0.00 | F110: 0.00 | K110: 0.00 | N110: 0.00
A111: Моторные масла и спец.смазки | B111: 343015 | C111: 0.00 | D111: 0.00 | E111: 0.00 | F111: 0.00 | K111: 0.00 | N111: 0.00
A112: Приобретение канцелярских, хозяйственных товаров | B112: 346017 | C112: 50,000.00 | D112: 0.00 | E112: 50,000.00 | F112: 0.00 | K112: 0.00 | N112: 50,000.00 | O112: 50,000.00
A113: Закупка молока и молочных продуктов | B113: 342018 | C113: 0.00 | D113: 0.00 | E113: 0.00 | F113: 0.00 | K113: 0.00 | N113: 0.00
A114: Прочие расходы по увеличению стоимости материальных запасов | B114: 346099 | C114: 0.00 | D114: 0.00 | E114: 0.00 | F114: 0.00 | K114: 0.00 | N114: 0.00
A115: Приобретение (изготовление) бланков строгой отчетности, специальной продукции | B115: 341001 | C115: 0.00 | D115: 0.00 | E115: 0.00 | F115: 0.00 | K115: 0.00 | N115: 0.00
A116: Налоги | C116: 305,843.00 | D116: 0.00 | E116: 305,843.00 | F116: 0.00 | G116: =SUM(G117:G121) -> 0.00 | H116: 0.00 | I116: 0.00 | J116: 0.00 | K116: 0.00 | L116: 0.00 | M116: 0.00 | N116: 305,843.00 | O116: 305,843.00 | P116: 0.00 | Q116: 0.00 | R116: 0.00
A117: Земельный налог | B117: 291001 | C117: 305,776.00 | D117: 0.00 | E117: 305,776.00 | F117: 0.00 | K117: =L117+M117 -> 0.00 | N117: 305,776.00 | O117: 305,776.00
A118: Выплаты за негативное воздействие окружающей среды (экологический налог) | B118: 291004 | C118: 0.00 | D118: 0.00 | E118: 0.00 | F118: 0.00 | K118: 0.00 | N118: 0.00
A119: Налог на имущество | B119: 291014 | C119: 67.00 | D119: 0.00 | E119: 67.00 | F119: 0.00 | K119: 0.00 | N119: 67.00 | O119: 67.00
A120: Транспортный налог | B120: 291015 | C120: 0.00 | D120: 0.00 | E120: 0.00 | F120: 0.00 | K120: 0.00 | N120: 0.00
A121: Налог по упращенной системе налогообложения для автономных учреждений | B121: 291025 | C121: 0.00 | D121: 0.00 | E121: 0.00 | F121: 0.00 | K121: 0.00 | N121: 0.00
A122: Доведение до норматива (в АЦК вносятся только Ассигнования) | B122: 346099 | C122: 733,670.96 | D122: 733,670.96 | E122: 0.00 | F122: 733,670.96 | G122: 733670.96 | K122: 0.00 | N122: 0.00
A123: Объем недоведенных лимитов | C123: 733,670.96 | D123: 733,670.96 | E123: 0.00 | F123: 733,670.96 | G123: =G122 -> 733,670.96 | H123: 0.00 | I123: 0.00 | J123: 0.00 | K123: 0.00 | L123: 0.00 | M123: 0.00 | N123: 0.00 | O123: =O122 -> 0.00
A124: Недостаток по ФОТ на госполномочия всего: | C124: 0.00 | D124: 0.00 | E124: 0.00 | F124: 0.00 | G124: =SUM(G125:G126) -> 0 | H124: 0 | I124: 0 | J124: 0 | K124: 0 | L124: 0 | M124: 0 | N124: 0.00 | P124: 0 | Q124: 0 | R124: 0
A125: в том числе : КОСГУ 211 | C125: 0.00
A126: КОСГУ 213 | C126: =D126+E126 -> 0.00
D127: Ассигнования | E127: Лимиты
D128: =D13 -> 26,893,168.12 | E128: =D13-D123 -> 26,159,497.16 | G128: Зам.главного бухгалтера | J128: Э.Ф.Зарипова
D129: =E13 -> 8,865,533.97 | E129: =E13-E123 -> 8,865,533.97
D130: =D128+D129 -> 35,758,702.09 | E130: =E128+E129 -> 35,025,031.13
G131: Руководитель | J131: Т.П.Матлина
